bitfinex/quotes_BTCUSD_20250812
["timestamp","ask_amount","ask_price","bid_price","bid_amount"]
[1755030473786,0.1863382,119840.0,119830.0,0.25857275]
[1755030473990,0.1863382,119840.0,119830.0,0.76831302]
[1755030476611,0.1873182,119840.0,119830.0,0.1706195]
[1755030476828,0.1902582,119840.0,119830.0,0.1706195]
[1755030477185,0.22597275,119840.0,119830.0,0.1706195]
[1755030477597,0.16691704,119820.0,119810.0,2.17813]
[1755030477955,0.16691704,119820.0,119810.0,2.62273352]
[1755030478380,0.16691704,119820.0,119810.0,2.12126348]
[1755030478590,0.16691704,119820.0,119810.0,2.63100375]
[1755030478806,0.16696569,119820.0,119810.0,2.79276375]
[1755030479754,0.16696569,119820.0,119810.0,2.81930919]
[1755030479979,0.18655471,119820.0,119810.0,2.71154594]
[1755030480207,0.18441471,119820.0,119810.0,2.00927023]
[1755030480455,0.18655471,119820.0,119810.0,2.17195023]
[1755030480922,0.22222371,119820.0,119810.0,2.01027023]
[1755030481221,0.18977471,119820.0,119810.0,2.00927023]
[1755030481431,0.19077471,119820.0,119810.0,2.17091023]
[1755030482620,0.19077471,119820.0,119810.0,2.16991023]
[1755030482988,0.19177471,119820.0,119810.0,2.16991023]
[1755030484096,0.19177471,119820.0,119810.0,1.78950279]
[1755030488378,0.22764371,119820.0,119810.0,1.78950279]
[1755030489231,0.19177471,119820.0,119810.0,1.78950279]
[1755030489902,0.18855471,119820.0,119810.0,1.78950279]
[1755030492770,0.19177471,119820.0,119810.0,1.78950279]
[1755030493185,0.18855471,119820.0,119810.0,1.78950279]
[1755030493805,0.21360271,119820.0,119810.0,1.78950279]
[1755030494635,0.21146271,119820.0,119810.0,1.79451279]
[1755030494838,0.21360271,119820.0,119810.0,1.79451279]
[1755030497298,0.21360271,119820.0,119810.0,2.30425306]
[1755030497506,0.21360271,119820.0,119810.0,1.79451279]
[1755030497724,0.72334298,119820.0,119810.0,1.79451279]
[1755030498362,0.72334298,119820.0,119810.0,1.79158279]
[1755030498566,0.21360271,119820.0,119810.0,1.78950279]
[1755030498773,0.72334298,119820.0,119810.0,1.78950279]
[1755030499429,0.21360271,119820.0,119810.0,1.78950279]
[1755030499639,0.21360271,119820.0,119810.0,1.79158279]
[1755030500061,0.72334298,119820.0,119810.0,1.78950279]
[1755030500499,0.21682271,119820.0,119810.0,1.78950279]
[1755030500706,0.21682271,119820.0,119810.0,2.30425306]
[1755030500707,0.16896569,119820.0,119810.0,2.30425306]
[1755030501131,0.16896569,119820.0,119810.0,5.24903502]
[1755030501339,0.18641471,119820.0,119810.0,5.24903502]
[1755030501560,0.16896569,119820.0,119810.0,5.24903502]
[1755030501759,0.16896569,119820.0,119810.0,4.70709502]
[1755030502039,0.18541471,119820.0,119810.0,4.63758602]
[1755030503092,0.18541471,119820.0,119810.0,4.06099804]
[1755030503316,0.18441471,119820.0,119810.0,4.57073831]
[1755030503871,0.18441471,119820.0,119810.0,3.91032831]
[1755030505027,0.18441471,119820.0,119810.0,3.52829431]
[1755030505454,0.18441471,119820.0,119810.0,3.47203431]
[1755030505654,0.18441471,119820.0,119810.0,2.07723604]
[1755030505854,0.18441471,119820.0,119810.0,2.43617304]
[1755030506071,0.18441471,119820.0,119810.0,2.94591331]
[1755030506390,0.18441471,119820.0,119810.0,2.91287931]
[1755030507393,0.18441471,119820.0,119810.0,2.40313904]
[1755030507720,0.18441471,119820.0,119810.0,2.74159031]
[1755030508946,0.18441471,119820.0,119810.0,2.23185004]
[1755030509164,0.18441471,119820.0,119810.0,2.74159031]
[1755030509586,0.18441471,119820.0,119810.0,2.23185004]
[1755030509794,0.18441471,119820.0,119810.0,2.74159031]
[1755030510734,0.18441471,119820.0,119810.0,2.23185004]
[1755030510957,0.18441471,119820.0,119810.0,2.74159031]
[1755030511179,0.18441471,119820.0,119810.0,2.23185004]
[1755030511391,0.18441471,119820.0,119810.0,2.07723604]
[1755030511604,0.18441471,119820.0,119810.0,2.58697631]
[1755030512465,0.18441471,119820.0,119810.0,2.07723604]
[1755030512671,0.18441471,119820.0,119810.0,2.58697631]
[1755030513293,0.18441471,119820.0,119810.0,2.07723604]
[1755030513501,0.18441471,119820.0,119810.0,2.58697631]
[1755030513920,0.18441471,119820.0,119810.0,2.07723604]
[1755030514131,0.18441471,119820.0,119810.0,2.58697631]
[1755030514457,0.18441471,119820.0,119810.0,2.07723604]
[1755030514668,0.18441471,119820.0,119810.0,2.58697631]
[1755030514875,0.18441471,119820.0,119810.0,2.07723604]
[1755030515505,0.18441471,119820.0,119810.0,2.58697631]
[1755030515734,0.18441471,119820.0,119810.0,2.07723604]
[1755030515946,0.18441471,119820.0,119810.0,2.58697631]
[1755030516515,0.18638471,119820.0,119810.0,2.58196631]
[1755030516949,0.18638471,119820.0,119810.0,2.58700631]
[1755030517374,0.18441471,119820.0,119810.0,2.58700631]
[1755030517852,0.18958471,119820.0,119810.0,1.78770279]
[1755030519031,0.18638471,119820.0,119810.0,1.78770279]
[1755030520077,0.21142971,119820.0,119810.0,1.78770279]
[1755030520286,0.72436998,119820.0,119810.0,1.34975478]
[1755030520505,0.72436998,119820.0,119810.0,1.13532118]
[1755030520721,0.72536998,119820.0,119810.0,1.02431105]
[1755030521146,0.72536998,119820.0,119810.0,0.58919606]
[1755030521357,0.72536998,119820.0,119810.0,0.47610433]
[1755030521573,0.80785441,119820.0,119810.0,0.24500449]
[1755030521805,0.29911414,119820.0,119810.0,0.16142816]
[1755030522441,0.1669449,119800.0,119790.0,0.20349]
[1755030522657,0.1669449,119800.0,119790.0,0.36516]
[1755030523084,0.1669449,119800.0,119790.0,0.16504]
[1755030523752,0.1669449,119800.0,119790.0,0.67478027]
[1755030525896,0.1669449,119800.0,119790.0,0.68999961]
[1755030526309,0.1669449,119800.0,119790.0,0.18025934]
[1755030526518,0.1669449,119800.0,119790.0,0.68025934]
[1755030526936,0.1669449,119800.0,119790.0,0.18025934]
[1755030527994,0.1669449,119800.0,119790.0,0.68025934]
[1755030528219,0.1669449,119800.0,119790.0,0.18025934]
[1755030528462,0.1669449,119800.0,119790.0,0.68025934]
[1755030528684,0.1669449,119800.0,119790.0,0.68999961]
[1755030529594,0.1669449,119800.0,119790.0,0.18025934]
[1755030529818,0.1669449,119800.0,119790.0,0.68999961]
[1755030531236,0.1669449,119800.0,119790.0,0.18025934]
[1755030531482,0.1669449,119800.0,119790.0,1.18999961]
[1755030531734,0.1669449,119800.0,119790.0,0.68999961]
[1755030532792,0.1669449,119800.0,119790.0,0.18025934]
[1755030533002,0.1669449,119800.0,119790.0,1.18999961]
[1755030533212,0.1669449,119800.0,119790.0,0.68999961]
[1755030533425,0.1669449,119800.0,119790.0,0.18025934]
[1755030533632,0.1689149,119800.0,119790.0,0.18025934]
[1755030534085,0.1689149,119800.0,119790.0,0.68025934]
[1755030534314,0.1689149,119800.0,119790.0,0.18025934]
[1755030534538,0.1689149,119800.0,119790.0,0.68025934]
[1755030534784,0.18956392,119800.0,119790.0,0.17521934]
[1755030536113,0.19056392,119800.0,119790.0,0.17521934]
[1755030537069,0.19156392,119800.0,119790.0,0.17521934]
[1755030538128,0.21661392,119800.0,119790.0,0.17521934]
[1755030538338,0.16695884,119790.0,119780.0,0.0004]
[1755030538547,0.18440786,119790.0,119780.0,0.00247]
[1755030538751,0.18440786,119790.0,119780.0,0.00544]
[1755030539574,0.18440786,119790.0,119780.0,0.16424]
[1755030539987,0.18652786,119790.0,119780.0,0.16424]
[1755030540190,0.18652786,119790.0,119780.0,0.16127]
[1755030540412,0.73847041,119790.0,119780.0,0.1592]
[1755030540640,0.16697278,119780.0,119770.0,0.00316]
[1755030540851,0.1865418,119780.0,119770.0,0.5]
[1755030541088,0.16698672,119770.0,119760.0,0.22837923]
[1755030541337,0.16698672,119770.0,119760.0,0.23038923]
[1755030541801,0.16698672,119770.0,119760.0,0.38902923]
[1755030542014,0.16698672,119770.0,119760.0,0.89925707]
[1755030542471,0.18443574,119770.0,119760.0,0.37971775]
[1755030542680,0.22219149,119770.0,119760.0,0.37454775]
[1755030542890,0.69805601,119770.0,119760.0,0.37454775]
[1755030543096,0.18831574,119770.0,119760.0,0.37554775]
[1755030543320,0.21036274,119770.0,119760.0,0.37554775]
[1755030543729,0.21136274,119770.0,119760.0,0.37554775]
[1755030543944,0.21136274,119770.0,119760.0,0.37655775]
[1755030544170,0.21236274,119770.0,119760.0,0.37655775]
[1755030544595,0.21236274,119770.0,119760.0,0.37971775]
[1755030545902,0.25059729,119770.0,119760.0,0.37971775]
[1755030546785,0.21236274,119770.0,119760.0,0.37971775]
[1755030548248,0.21149274,119770.0,119760.0,0.37971775]
[1755030551886,0.21149274,119770.0,119760.0,0.88945802]
[1755030552077,0.18643574,119770.0,119760.0,0.88945802]
[1755030553004,0.16898672,119770.0,119760.0,2.46821329]
[1755030553186,0.16898672,119770.0,119760.0,2.55093654]
[1755030553387,0.18643574,119770.0,119760.0,2.55093654]
[1755030553899,0.18543574,119770.0,119760.0,2.55093654]
[1755030554765,0.18443574,119770.0,119760.0,2.55093654]
[1755030558018,0.18443574,119770.0,119760.0,2.04119627]
[1755030558374,0.18443574,119770.0,119760.0,1.531456]
[1755030558517,0.18443574,119770.0,119760.0,2.04119627]
[1755030558928,0.18443574,119770.0,119760.0,2.55093654]
[1755030559229,0.18443574,119770.0,119760.0,2.04119627]
[1755030559805,0.18443574,119770.0,119760.0,1.531456]
[1755030560010,0.18443574,119770.0,119760.0,2.04119627]
[1755030560245,0.18443574,119770.0,119760.0,2.55093654]
[1755030561215,0.18443574,119770.0,119760.0,2.04119627]
[1755030561701,0.18443574,119770.0,119760.0,2.55093654]
[1755030567426,0.16698672,119770.0,119760.0,2.7179372]
[1755030568789,0.16698672,119770.0,119760.0,2.7209372]
[1755030569154,0.16698672,119770.0,119760.0,2.55393654]
[1755030569368,0.16698672,119770.0,119760.0,2.7209372]
[1755030570850,0.16698672,119770.0,119760.0,1.534456]
[1755030571063,0.16698672,119770.0,119760.0,2.7209372]
[1755030573796,0.16698672,119770.0,119760.0,2.55393654]
[1755030575535,0.16698672,119770.0,119760.0,2.7209372]
[1755030576153,0.16698672,119770.0,119760.0,2.55393654]
[1755030579862,0.16698672,119770.0,119760.0,2.7209372]
[1755030580042,0.16698672,119770.0,119760.0,2.55393654]
[1755030580905,0.16909672,119770.0,119760.0,2.04103627]
[1755030581115,0.16909672,119770.0,119760.0,2.03902627]
[1755030581888,0.16909672,119770.0,119760.0,1.529286]
[1755030582091,0.16909672,119770.0,119760.0,2.03902627]
[1755030582785,0.16909672,119770.0,119760.0,1.529286]
[1755030583022,0.18978574,119770.0,119760.0,0.460271]
[1755030583230,0.18978574,119770.0,119760.0,1.10800627]
[1755030583601,0.18654574,119770.0,119760.0,1.31017627]
[1755030583811,0.18654574,119770.0,119760.0,1.31341627]
[1755030584437,0.18654574,119770.0,119760.0,0.803676]
[1755030584659,0.18654574,119770.0,119760.0,1.11321627]
[1755030584873,0.18443574,119770.0,119760.0,1.62295654]
[1755030585083,0.18443574,119770.0,119760.0,1.62869962]
[1755030585289,0.18443574,119770.0,119760.0,0.80213418]
[1755030585490,0.18443574,119770.0,119760.0,1.65461406]
[1755030585701,0.18443574,119770.0,119760.0,1.62869962]
[1755030585921,0.18443574,119770.0,119760.0,1.62295654]
[1755030586536,0.18443574,119770.0,119760.0,1.11321627]
[1755030586980,0.18833574,119770.0,119760.0,1.10780627]
[1755030587187,0.18833574,119770.0,119760.0,0.731455]
[1755030587410,0.18833574,119770.0,119760.0,1.24119527]
[1755030587847,0.18833574,119770.0,119760.0,0.96981127]
[1755030588059,0.18833574,119770.0,119760.0,1.23448727]
[1755030588475,0.18833574,119770.0,119760.0,0.566748]
[1755030588698,0.18833574,119770.0,119760.0,1.07648827]
[1755030588929,0.18833574,119770.0,119760.0,0.260071]
[1755030589346,0.18512574,119770.0,119760.0,0.530616]
[1755030589545,0.18512574,119770.0,119760.0,1.04035627]
[1755030590049,0.18512574,119770.0,119760.0,1.03835627]
[1755030590490,0.18512574,119770.0,119760.0,1.03735627]
[1755030592449,0.18512574,119770.0,119760.0,0.527616]
[1755030592989,0.18512574,119770.0,119760.0,1.03735627]
[1755030593205,0.18512574,119770.0,119760.0,0.527616]
[1755030593409,0.18512574,119770.0,119760.0,1.03735627]
[1755030593810,0.18512574,119770.0,119760.0,1.03952627]
[1755030594941,0.18512574,119770.0,119760.0,1.04276627]
[1755030595690,0.18512574,119770.0,119760.0,0.87459727]
[1755030596038,0.18836574,119770.0,119760.0,0.76681127]
[1755030596606,0.18836574,119770.0,119760.0,0.257071]
[1755030596779,0.18836574,119770.0,119760.0,0.76681127]
[1755030597585,0.18443574,119770.0,119760.0,1.38667554]
[1755030597818,0.18443574,119770.0,119760.0,1.58667554]
[1755030598030,0.18443574,119770.0,119760.0,1.8206267]
[1755030598236,0.18443574,119770.0,119760.0,1.98762736]
[1755030598390,0.1844218,119780.0,119770.0,0.15]
[1755030598595,0.1844218,119780.0,119770.0,5.82524493]
[1755030598816,0.1844218,119780.0,119770.0,5.82107027]
[1755030599819,0.1844218,119780.0,119770.0,5.98805699]
[1755030600397,0.1844218,119780.0,119770.0,4.27896052]
[1755030600752,0.1844218,119780.0,119770.0,3.76922025]
[1755030600963,0.1844218,119780.0,119770.0,4.27896052]
[1755030601914,0.1844218,119780.0,119770.0,3.76922025]
[1755030602337,0.1844218,119780.0,119770.0,4.27896052]
[1755030602530,0.1844218,119780.0,119770.0,3.76922025]
[1755030602735,0.1844218,119780.0,119770.0,4.27896052]
[1755030604156,0.1844218,119780.0,119770.0,3.76922025]
[1755030604390,0.1844218,119780.0,119770.0,3.87717152]
[1755030604695,0.1844218,119780.0,119770.0,3.36743125]
[1755030604912,0.1844218,119780.0,119770.0,3.87717152]
[1755030605361,0.1844218,119780.0,119770.0,3.36743125]
[1755030605609,0.1844218,119780.0,119770.0,3.87717152]
[1755030607146,0.1844218,119780.0,119770.0,3.36743125]
[1755030607339,0.1844218,119780.0,119770.0,3.87717152]
[1755030611519,0.1844218,119780.0,119770.0,3.36743125]
[1755030611719,0.1844218,119780.0,119770.0,3.87717152]
[1755030611928,0.17530678,119790.0,119780.0,0.56697278]
[1755030612134,0.17530678,119790.0,119780.0,5.6989623]
[1755030612349,0.1927558,119790.0,119780.0,5.7019223]
[1755030612594,0.1927558,119790.0,119780.0,4.8242983]
[1755030613261,0.1927558,119790.0,119780.0,4.65732552]
[1755030613667,0.1927558,119790.0,119780.0,4.8242983]
[1755030614097,0.1927558,119790.0,119780.0,4.65732552]
[1755030614521,0.1927558,119790.0,119780.0,4.8242983]
[1755030617198,0.1927558,119790.0,119780.0,4.65732552]
[1755030617731,0.1927558,119790.0,119780.0,4.8242983]
[1755030618397,0.1927558,119790.0,119780.0,4.31455803]
[1755030618606,0.1927558,119790.0,119780.0,4.5631333]
[1755030619454,0.1927558,119790.0,119780.0,4.5641333]
[1755030620003,0.1927558,119790.0,119780.0,4.05339303]
[1755030620237,0.1927558,119790.0,119780.0,4.5641333]
[1755030620661,0.1927558,119790.0,119780.0,4.5661333]
[1755030620864,0.1927558,119790.0,119780.0,4.05639303]
[1755030621108,0.1927558,119790.0,119780.0,4.5661333]
[1755030621322,0.1927558,119790.0,119780.0,4.05639303]
[1755030621477,0.1927558,119790.0,119780.0,4.5661333]
[1755030622063,0.1927558,119790.0,119780.0,4.08143903]
[1755030622266,0.1927558,119790.0,119780.0,4.5911793]
[1755030625056,0.17529214,119800.0,119790.0,0.31695884]
[1755030625193,0.17529214,119800.0,119790.0,6.57876263]
[1755030625397,0.17529214,119800.0,119790.0,6.02853736]
[1755030625622,0.17529214,119800.0,119790.0,5.93350236]
[1755030626051,0.17529214,119800.0,119790.0,5.32232636]
[1755030626265,0.17529214,119800.0,119790.0,5.13853352]
[1755030626422,0.17529214,119800.0,119790.0,5.01937552]
[1755030627058,0.17529214,119800.0,119790.0,4.91756652]
[1755030627424,0.17529214,119800.0,119790.0,4.11955325]
[1755030627619,0.19488116,119800.0,119790.0,2.20978952]
[1755030627875,0.19805116,119800.0,119790.0,1.03258552]
[1755030628026,0.19805116,119800.0,119790.0,1.09702352]
[1755030628226,0.19805116,119800.0,119790.0,1.24850052]
[1755030628567,0.19805116,119800.0,119790.0,1.25050052]
[1755030629047,0.19805116,119800.0,119790.0,1.25150052]
[1755030629250,0.19805116,119800.0,119790.0,0.74176025]
[1755030629458,0.19805116,119800.0,119790.0,1.25050052]
[1755030629661,0.19488116,119800.0,119790.0,1.24850052]
[1755030630098,0.19488116,119800.0,119790.0,1.25050052]
[1755030630317,0.19488116,119800.0,119790.0,1.24850052]
[1755030631492,0.19488116,119800.0,119790.0,0.73876025]
[1755030631724,0.19488116,119800.0,119790.0,1.24850052]
[1755030631930,0.19274116,119800.0,119790.0,1.25383052]
[1755030632899,0.17529214,119800.0,119790.0,1.25383052]
[1755030634097,0.17529214,119800.0,119790.0,1.05383052]
[1755030634307,0.19473116,119800.0,119790.0,1.12265852]
[1755030634523,0.19796116,119800.0,119790.0,1.12265852]
[1755030635098,0.19473116,119800.0,119790.0,1.12265852]
[1755030635735,0.19473116,119800.0,119790.0,1.32265852]
[1755030635951,0.19473116,119800.0,119790.0,1.32798852]
[1755030636174,0.19274116,119800.0,119790.0,1.32798852]
[1755030645602,0.17529214,119800.0,119790.0,2.03772879]
[1755030645812,0.17529214,119800.0,119790.0,2.35468763]
[1755030646016,0.17529214,119800.0,119790.0,2.37972863]
[1755030646238,0.20030689,119820.0,119790.0,2.37972863]
[1755030646239,0.025044,119820.0,119790.0,2.37972863]
[1755030646449,0.17528594,119840.0,119830.0,0.4]
[1755030646653,0.17528594,119840.0,119830.0,6.40798552]
[1755030646887,0.17528594,119840.0,119830.0,6.9105729]
[1755030647114,0.19273496,119840.0,119830.0,6.40401263]
[1755030647340,0.16688918,119840.0,119830.0,6.9387879]
[1755030647530,0.19274557,119860.0,119830.0,6.9387879]
[1755030647776,0.18442814,119850.0,119840.0,6.26319601]
[1755030647998,0.16697912,119850.0,119840.0,6.26117379]
[1755030648218,0.16697912,119850.0,119840.0,5.58101752]
[1755030648508,0.18442814,119850.0,119840.0,5.56916752]
[1755030648655,0.16697912,119850.0,119840.0,5.33010952]
[1755030648874,0.16697912,119850.0,119840.0,5.29415552]
[1755030649079,0.16697912,119850.0,119840.0,3.77951625]
[1755030649281,0.16697912,119850.0,119840.0,4.28925652]
[1755030649488,0.16697912,119850.0,119840.0,4.31379172]
[1755030649891,0.16697912,119850.0,119840.0,3.59823472]
[1755030650324,0.16697912,119850.0,119840.0,2.91224945]
[1755030650531,0.16697912,119850.0,119840.0,3.42198972]
[1755030652125,0.16797912,119850.0,119840.0,3.42198972]
[1755030652955,0.16697912,119850.0,119840.0,3.42198972]
[1755030653173,0.16697912,119850.0,119840.0,2.91224945]
[1755030653379,0.16697912,119850.0,119840.0,3.42198972]
[1755030655157,0.16697912,119850.0,119840.0,2.91224945]
[1755030655478,0.16697912,119850.0,119840.0,3.42198972]
[1755030655680,0.16896912,119850.0,119840.0,0.49406745]
[1755030655884,0.16896912,119850.0,119840.0,0.41726045]
[1755030656088,0.16896912,119850.0,119840.0,0.61726045]
[1755030656313,0.16697912,119850.0,119840.0,0.77259045]
[1755030656472,0.16697912,119850.0,119840.0,1.28233072]
[1755030657487,0.16697912,119850.0,119840.0,1.30736172]
[1755030658962,0.16697912,119850.0,119840.0,0.79762145]
[1755030659150,0.16697912,119850.0,119840.0,1.30736172]
[1755030659552,0.16697912,119850.0,119840.0,0.79762145]
[1755030659751,0.16697912,119850.0,119840.0,1.30736172]
[1755030660311,0.16697912,119850.0,119840.0,0.79762145]
[1755030660515,0.16697912,119850.0,119840.0,0.49398145]
[1755030660732,0.16894912,119850.0,119840.0,1.30672172]
[1755030660944,0.16894912,119850.0,119840.0,1.30354172]
[1755030661570,0.67868939,119850.0,119840.0,0.79380145]
[1755030661991,0.16894912,119850.0,119840.0,0.79380145]
[1755030663311,0.16697912,119850.0,119840.0,0.79696145]
[1755030664380,0.16894912,119850.0,119840.0,0.68167463]
[1755030664589,0.16894912,119850.0,119840.0,0.47851463]
[1755030664793,0.16894912,119850.0,119840.0,0.67851463]
[1755030665427,0.16894912,119850.0,119840.0,0.82851463]
[1755030665603,0.16894912,119850.0,119840.0,0.83167463]
[1755030665828,0.16697912,119850.0,119840.0,0.83167463]
[1755030667619,0.67671939,119850.0,119840.0,0.83167463]
[1755030667842,0.16697912,119850.0,119840.0,0.83167463]
[1755030668042,0.67671939,119850.0,119840.0,0.83167463]
[1755030668874,0.16697912,119850.0,119840.0,0.83167463]
[1755030669088,0.67671939,119850.0,119840.0,0.83167463]
[1755030670356,0.67765939,119850.0,119840.0,0.82636463]
[1755030670563,0.68076939,119850.0,119840.0,0.81567463]
[1755030670780,0.68076939,119850.0,119840.0,0.61567463]
[1755030670948,0.67765939,119850.0,119840.0,0.81567463]
[1755030671925,0.68078939,119850.0,119840.0,0.81567463]
[1755030672144,0.68078939,119850.0,119840.0,0.80010363]
[1755030672361,0.68078939,119850.0,119840.0,0.65010363]
[1755030672571,0.68078939,119850.0,119840.0,0.80010363]
[1755030672791,0.67765939,119850.0,119840.0,0.80010363]
[1755030673423,0.67765939,119850.0,119840.0,0.77507263]
[1755030674077,0.67671939,119850.0,119840.0,0.78038263]
[1755030674292,0.16697912,119850.0,119840.0,0.93038263]
[1755030674714,0.67671939,119850.0,119840.0,0.93038263]
[1755030676244,0.67671939,119850.0,119840.0,0.93138263]
[1755030677238,0.67671939,119850.0,119840.0,0.93338263]
[1755030677655,0.16697912,119850.0,119840.0,0.93338263]
[1755030677856,0.67671939,119850.0,119840.0,0.78338263]
[1755030678495,0.67868939,119850.0,119840.0,0.62731263]
[1755030678701,0.16894912,119850.0,119840.0,0.77731263]
[1755030678903,0.67868939,119850.0,119840.0,0.77731263]
[1755030679052,0.16894912,119850.0,119840.0,0.62731263]
[1755030679253,0.16894912,119850.0,119840.0,0.42731263]
[1755030679254,0.67868939,119850.0,119840.0,0.42731263]
[1755030679462,0.68181939,119850.0,119840.0,0.42731263]
[1755030679665,0.68181939,119850.0,119840.0,0.62731263]
[1755030680679,0.16894912,119850.0,119840.0,0.62731263]
[1755030680885,0.67868939,119850.0,119840.0,0.62731263]
[1755030681191,0.16894912,119850.0,119840.0,0.62731263]
[1755030681404,0.67868939,119850.0,119840.0,0.62731263]
[1755030681602,0.16894912,119850.0,119840.0,0.42731263]
[1755030681836,0.18952814,119850.0,119840.0,0.62731263]
[1755030682043,0.18639814,119850.0,119840.0,0.62731263]
[1755030682243,0.18639814,119850.0,119840.0,0.62946263]
[1755030682676,0.16894912,119850.0,119840.0,0.82946263]
[1755030683014,0.16697912,119850.0,119840.0,0.83262263]
[1755030683966,0.16894912,119850.0,119840.0,0.83262263]
[1755030684159,0.16894912,119850.0,119840.0,0.82946263]
[1755030684492,0.16894912,119850.0,119840.0,0.82731263]
[1755030684693,0.17207912,119850.0,119840.0,0.67507263]
[1755030684949,0.69926841,119850.0,119840.0,0.49697163]
[1755030685299,0.69926841,119850.0,119840.0,0.29697163]
[1755030686257,0.18952814,119850.0,119840.0,0.29697163]
[1755030686478,0.69926841,119850.0,119840.0,0.29697163]
[1755030686920,0.69926841,119850.0,119840.0,0.21424838]
[1755030687360,0.18952814,119850.0,119840.0,0.21424838]
[1755030688026,0.69926841,119850.0,119840.0,0.21424838]
[1755030689391,0.69926841,119850.0,119840.0,0.06224838]
[1755030689606,0.18952814,119850.0,119840.0,0.21408838]
[1755030692079,0.18639814,119850.0,119840.0,0.21408838]
[1755030692519,0.18940814,119850.0,119840.0,0.21408838]
[1755030694649,0.1843382,119840.0,119830.0,0.20024]
[1755030694880,0.1893682,119840.0,119830.0,0.28296325]
[1755030695099,0.1893682,119840.0,119830.0,0.31738367]
[1755030695767,0.1893682,119840.0,119830.0,0.38622042]
[1755030696007,0.1893682,119840.0,119830.0,0.38822042]
[1755030696454,0.1893682,119840.0,119830.0,0.23666042]
[1755030696708,0.1893682,119840.0,119830.0,0.41100808]
[1755030697362,0.1893682,119840.0,119830.0,0.41300808]
[1755030697587,0.1893682,119840.0,119830.0,0.25948808]
[1755030697810,0.1893682,119840.0,119830.0,0.41100808]
[1755030698036,0.1893682,119840.0,119830.0,0.25948808]
[1755030698280,0.16691704,119820.0,119810.0,0.40313]
[1755030698510,0.16691704,119820.0,119810.0,1.76750252]
[1755030698959,0.16691704,119820.0,119810.0,0.99770352]
[1755030699393,0.16691704,119820.0,119810.0,1.28340952]
[1755030699613,0.16691704,119820.0,119810.0,0.93180952]
[1755030699838,0.16691704,119820.0,119810.0,1.28340952]
[1755030700278,0.16691704,119820.0,119810.0,1.31655917]
[1755030700498,0.16691704,119820.0,119810.0,1.31755917]
[1755030700708,0.16691704,119820.0,119810.0,1.31751917]
[1755030701132,0.16691704,119820.0,119810.0,1.31851917]
[1755030701562,0.16691704,119820.0,119810.0,1.34392438]
[1755030702431,0.16691704,119820.0,119810.0,0.83418411]
[1755030702653,0.16691704,119820.0,119810.0,1.34392438]
[1755030704510,0.16691704,119820.0,119810.0,1.20965838]
[1755030704700,0.16691704,119820.0,119810.0,1.52629838]
[1755030705877,0.16792704,119820.0,119810.0,1.20965838]
[1755030706104,0.16792704,119820.0,119810.0,1.00965838]
[1755030706306,0.16792704,119820.0,119810.0,0.49991811]
[1755030706540,0.16792704,119820.0,119810.0,1.00457838]
[1755030706979,0.18537606,119820.0,119810.0,1.00457838]
[1755030707218,0.18436606,119820.0,119810.0,1.00965838]
[1755030707653,0.16691704,119820.0,119810.0,2.77020138]
[1755030708558,0.16691704,119820.0,119810.0,2.97020138]
[1755030709227,0.16691704,119820.0,119810.0,2.66467238]
[1755030709898,0.16691704,119820.0,119810.0,2.56011038]
[1755030713732,0.15690551,119820.0,119810.0,2.56011038]
[1755030715785,0.15690551,119820.0,119810.0,2.52696073]
[1755030718312,0.15690551,119820.0,119810.0,2.59156073]
[1755030718857,0.15690551,119820.0,119810.0,2.08182046]
[1755030719129,0.15690551,119820.0,119810.0,2.59156073]
[1755030719347,0.15690551,119820.0,119810.0,2.59056073]
[1755030720599,0.15690551,119820.0,119810.0,2.08082046]
[1755030720601,0.15690551,119820.0,119810.0,2.41730496]
[1755030720855,0.15690551,119820.0,119810.0,2.56790496]
[1755030721107,0.15690551,119820.0,119810.0,2.56690496]
[1755030721593,0.15690551,119820.0,119810.0,2.36240496]
[1755030721875,0.15690551,119820.0,119810.0,2.55840496]
[1755030722086,0.15690551,119820.0,119810.0,2.56040496]
[1755030722333,0.15690551,119820.0,119810.0,2.36240496]
[1755030722574,0.15690551,119820.0,119810.0,2.58744096]
[1755030722813,0.15690551,119820.0,119810.0,2.38744096]
[1755030723057,0.15690551,119820.0,119810.0,2.58744096]
[1755030724841,0.13735203,119820.0,119810.0,2.58744096]
[1755030726167,0.13735203,119820.0,119810.0,2.38744096]
[1755030726370,0.13735203,119820.0,119810.0,2.58744096]
[1755030726780,0.13735203,119820.0,119810.0,1.03698896]
[1755030727206,0.13735203,119820.0,119810.0,1.23698896]
[1755030730947,0.13735203,119820.0,119810.0,3.23559323]
[1755030731172,0.16691553,119830.0,119820.0,0.3]
[1755030731397,0.17535552,119840.0,119830.0,0.2]
[1755030731616,0.17535552,119840.0,119830.0,1.45736379]
[1755030732109,0.17535552,119840.0,119830.0,1.48239479]
[1755030732600,0.17535552,119840.0,119830.0,2.76012179]
[1755030732999,0.17535552,119840.0,119830.0,2.74539979]
[1755030734085,0.17535552,119840.0,119830.0,2.68062379]
[1755030734295,0.17535552,119840.0,119830.0,2.68162379]
[1755030734716,0.17535552,119840.0,119830.0,2.32990379]
[1755030735132,0.17535552,119840.0,119830.0,2.15645079]
[1755030735340,0.17535552,119840.0,119830.0,1.99777879]
[1755030735551,0.17535552,119840.0,119830.0,1.99977879]
[1755030735972,0.17535552,119840.0,119830.0,1.99777879]
[1755030736183,0.17535552,119840.0,119830.0,1.89738179]
[1755030736772,0.17535552,119840.0,119830.0,1.76675979]
[1755030737382,0.17535552,119840.0,119830.0,1.76975979]
[1755030737808,0.17535552,119840.0,119830.0,1.76875979]
[1755030738010,0.17535552,119840.0,119830.0,1.77075979]
[1755030738787,0.17535552,119840.0,119830.0,1.74430079]
[1755030739981,0.17535552,119840.0,119830.0,1.72036679]
[1755030744999,0.17741552,119840.0,119830.0,1.48639479]
[1755030745212,0.17741552,119840.0,119830.0,1.28135479]
[1755030745429,0.17741552,119840.0,119830.0,1.60795479]
[1755030745648,0.17741552,119840.0,119830.0,1.48135479]
[1755030746504,0.17741552,119840.0,119830.0,1.28639479]
[1755030746711,0.17741552,119840.0,119830.0,1.48639479]
[1755030746925,0.17741552,119840.0,119830.0,1.28639479]
[1755030747134,0.17741552,119840.0,119830.0,1.48639479]
[1755030747345,0.17741552,119840.0,119830.0,1.28639479]
[1755030747552,0.17741552,119840.0,119830.0,0.77372452]
[1755030747757,0.17741552,119840.0,119830.0,1.48135479]
[1755030748174,0.17741552,119840.0,119830.0,1.48346479]
[1755030748378,0.17535552,119840.0,119830.0,1.48639479]
[1755030748579,0.17535552,119840.0,119830.0,3.12869879]
[1755030748780,0.17535552,119840.0,119830.0,1.61341379]
[1755030749189,0.17535552,119840.0,119830.0,1.81353379]
[1755030750636,0.17535552,119840.0,119830.0,0.79405325]
[1755030750841,0.17747552,119840.0,119830.0,1.68651479]
[1755030751531,0.17747552,119840.0,119830.0,1.48147479]
[1755030751757,0.17747552,119840.0,119830.0,1.68147479]
[1755030751943,0.17535552,119840.0,119830.0,1.68665479]
[1755030753477,0.17535552,119840.0,119830.0,1.53653479]
[1755030753685,0.17535552,119840.0,119830.0,1.68577479]
[1755030754168,0.17535552,119840.0,119830.0,0.66629425]